bitfinex/quotes_SOLUSD_20220210
["timestamp","ask_amount","ask_price","bid_price","bid_amount"]
[1644504636816,47.03812978,108.02,107.92,0.25]
[1644504637015,47.07520813,108.02,107.92,4.63]
[1644504637415,47.03812978,108.02,107.91,35.802]
[1644504637615,47.03812978,108.02,107.92,39.59574623]
[1644504638014,47.03812978,108.02,107.92,50.84574623]
[1644504639016,4.66707835,108.05,107.92,50.84574623]
[1644504639315,4.66707835,108.05,107.93,1.58329631]
[1644504639516,0.03707835,108.05,107.93,11.25]
[1644504639715,4.66707835,108.08,107.94,18.80901185]
[1644504639920,0.03707835,108.04,107.95,11.25]
[1644504640120,0.03707835,108.07,107.97,36.10530565]
[1644504640319,0.03707835,108.08,107.99,23.39131532]
[1644504640618,36.24520683,108.09,107.99,23.39131532]
[1644504640821,0.03707835,108.09,108.0,4.627]
[1644504641018,0.46476359,108.1,108.01,11.25]
[1644504641421,0.46476359,108.1,108.01,19.06285268]
[1644504641619,0.46476359,108.1,108.01,23.68985268]
[1644504641819,0.46476359,108.1,108.02,36.10530565]
[1644504642021,0.46476359,108.1,108.02,47.35530565]
[1644504642245,0.46476359,108.1,108.02,53.60530565]
[1644504642420,0.46476359,108.1,108.02,47.60530565]
[1644504642622,49.04267646,108.1,108.02,47.60530565]
[1644504642823,49.04267646,108.1,108.02,36.35530565]
[1644504643022,4.627,108.09,108.02,36.35530565]
[1644504643221,49.04267646,108.1,108.02,36.35530565]
[1644504643222,41.46132043,108.08,108.02,36.35530565]
[1644504643423,41.46132043,108.08,108.02,0.25]
[1644504643822,41.46132043,108.08,107.97,13.45]
[1644504644125,43.72962032,108.08,107.97,11.5]
[1644504644321,43.94254197,108.08,107.97,50.55329316]
[1644504644523,41.71132043,108.08,107.97,39.30329316]
[1644504644721,55.60062043,108.08,107.97,39.30329316]
[1644504644921,4.628,108.07,107.96,52.5732]
[1644504645123,6.89629989,108.07,107.96,4.627]
[1644504645326,4.82616146,108.06,107.96,4.627]
[1644504645523,4.628,108.05,107.91,23.6942]
[1644504645723,9.49123981,108.05,107.91,23.6942]
[1644504645923,58.31767057,108.04,107.92,34.42886239]
[1644504646125,0.03707835,108.03,107.92,34.42886239]
[1644504646727,7.27255203,108.03,107.92,34.42886239]
[1644504647024,37.87566127,108.02,107.92,34.42886239]
[1644504647224,42.54273962,108.02,107.92,34.42886239]
[1644504647424,42.50566127,108.02,107.92,34.42886239]
[1644504647625,37.87566127,108.02,107.92,34.42886239]
[1644504647824,37.91273962,108.02,107.92,34.67886239]
[1644504648825,37.87566127,108.02,107.94,25.06775858]
[1644504649024,0.03707835,108.03,107.94,25.06775858]
[1644504649224,6.03707835,108.04,107.94,25.31775858]
[1644504649427,0.03707835,108.04,107.94,41.05204587]
[1644504649626,2.64789049,108.06,107.95,15.88]
[1644504649832,2.64789049,108.06,107.95,17.5]
[1644504649833,4.63,108.06,107.95,17.5]
[1644504650031,41.96528214,108.05,107.96,34.42886239]
[1644504650231,39.35447,108.05,107.96,34.67886239]
[1644504650440,2.61867651,108.04,107.96,34.67886239]
[1644504650632,39.85715465,108.03,107.96,34.67886239]
[1644504651234,6.03707835,108.05,107.96,34.67886239]
[1644504651437,2.61872898,108.04,107.96,34.67886239]
[1644504651733,0.03707835,108.05,107.97,6.1795551]
[1644504651936,0.03707835,108.06,107.97,6.1795551]
[1644504652138,6.0,108.06,107.97,0.25]
[1644504652436,6.0,108.06,107.98,25.06775858]
[1644504652437,48.09540504,108.04,107.98,25.06775858]
[1644504652635,48.09540504,108.04,107.95,1.5515551]
[1644504652833,2.62292187,108.03,107.96,0.25]
[1644504653334,2.87292187,108.03,107.96,0.25]
[1644504653538,41.25828548,108.02,107.96,0.25]
[1644504653735,43.88120735,108.02,107.95,34.52290585]
[1644504653935,41.25828548,108.02,107.95,34.52290585]
[1644504654337,2.62763924,108.01,107.95,34.52290585]
[1644504654938,2.62763924,108.02,107.95,34.52290585]
[1644504655437,6.4482404,108.03,107.95,34.27290585]
[1644504655736,6.4482404,108.03,107.95,35.82068138]
[1644504655937,6.4482404,108.03,107.96,4.63]
[1644504656136,2.62763924,108.03,107.97,25.22371512]
[1644504656339,2.62763924,108.02,107.97,25.22371512]
[1644504656537,41.87015036,108.02,107.94,4.628]
[1644504656738,41.87015036,108.02,107.94,10.628]
[1644504656939,41.87015036,108.02,107.93,46.9169]
[1644504657141,2.62914592,108.01,107.89,4.63]
[1644504657361,0.03707835,108.0,107.89,21.88]
[1644504657560,34.89325522,108.0,107.9,41.26161217]
[1644504657763,42.21908187,107.98,107.9,41.26161217]
[1644504657962,42.21908187,107.98,107.9,45.89361217]
[1644504658163,42.21908187,107.98,107.9,41.26161217]
[1644504658362,0.03707835,108.0,107.9,41.26161217]
[1644504658563,2.62901145,108.0,107.91,4.631]
[1644504658762,2.6660898,108.0,107.91,4.881]
[1644504658962,0.25,108.0,107.91,4.881]
[1644504659163,2.62901145,107.99,107.91,98.621]
[1644504659362,6.48669096,108.03,107.92,19.78278433]
[1644504659564,0.03707835,108.0,107.92,18.2350088]
[1644504659764,3.85767951,108.04,107.93,11.25]
[1644504659962,0.03707835,108.02,107.93,11.25]
[1644504660162,2.62841644,108.02,107.93,11.5]
[1644504660362,43.30881129,108.01,107.94,41.26161217]
[1644504660564,2.62841644,108.0,107.94,41.26161217]
[1644504660764,2.62841644,108.0,107.94,41.51161217]
[1644504661163,35.18209175,107.99,107.92,4.63]
[1644504661376,35.18209175,107.99,107.91,6.0]
[1644504661565,2.62841644,107.98,107.91,0.25]
[1644504662163,2.62841644,107.98,107.91,42.23854667]
[1644504662365,37.34912481,107.97,107.91,42.23854667]
[1644504662562,37.34912481,107.97,107.91,0.25]
[1644504662763,37.34912481,107.97,107.88,1.54777553]
[1644504662962,37.34912481,107.97,107.87,24.4951]
[1644504663166,37.38620316,107.97,107.86,109.1317]
[1644504663364,7.26116679,107.96,107.85,138.7454]
[1644504663565,45.15872516,107.95,107.86,48.67785653]
[1644504663766,42.56763672,107.95,107.86,48.67785653]
[1644504663963,13.904,107.94,107.86,48.67785653]
[1644504664166,42.53055837,107.95,107.86,48.67785653]
[1644504664364,42.56763672,107.95,107.86,48.67785653]
[1644504664564,42.53055837,107.95,107.86,48.67785653]
[1644504665768,42.53055837,107.95,107.86,48.92785653]
[1644504666667,0.03707835,107.97,107.86,70.57346787]
[1644504666866,0.03707835,107.97,107.87,4.633]
[1644504667068,0.03707835,107.99,107.88,11.25]
[1644504667268,0.03707835,107.97,107.89,4.632]
[1644504667470,42.26782494,107.99,107.9,22.06876444]
[1644504667867,0.03707835,108.0,107.91,4.631]
[1644504668070,0.03707835,108.01,107.91,11.25]
[1644504668368,2.66310763,108.01,107.91,11.5]
[1644504668667,2.62602928,108.01,107.91,11.5]
[1644504668868,44.11469718,108.0,107.92,40.41603689]
[1644504669269,44.11469718,108.0,107.92,40.66603689]
[1644504669872,0.03707835,108.01,107.92,40.66603689]
[1644504670076,0.03707835,108.03,107.92,51.91603689]
[1644504670271,0.03707835,108.02,107.93,93.74]
[1644504670472,0.03707835,108.03,107.94,11.25]
[1644504670674,0.03707835,108.04,107.94,11.25]
[1644504670874,0.03707835,108.04,107.95,19.08058408]
[1644504671072,3.85767951,108.06,107.96,4.628]
[1644504671273,0.03707835,108.05,107.96,6.25]
[1644504671472,2.62591178,108.05,107.96,6.25]
[1644504671671,6.0,108.06,107.96,0.25]
[1644504671874,42.39855439,108.05,107.96,4.878]
[1644504672074,2.62591178,108.04,107.97,36.77321095]
[1644504672578,2.62591178,108.04,107.97,37.02321095]
[1644504672873,2.62591178,108.04,107.97,43.02321095]
[1644504673074,2.62591178,108.04,107.98,109.618]
[1644504673274,3.85767951,108.07,107.99,13.8805]
[1644504673474,3.82060116,108.07,107.99,13.8805]
[1644504673774,3.82060116,108.07,108.0,22.72341002]
[1644504674175,3.82060116,108.08,108.0,40.22341002]
[1644504674377,2.62591178,108.09,108.01,1.56602542]
[1644504674581,1.15766475,108.13,108.03,80.0]
[1644504674775,1.15766475,108.13,108.04,11.25]
[1644504675076,38.74986971,108.18,108.05,36.77321095]
[1644504675277,38.74986971,108.18,108.06,25.1232]
[1644504675477,13.8713,108.19,108.06,26.68922542]
[1644504675774,76.2827,108.22,108.06,26.68922542]
[1644504675775,5.22803135,108.21,108.06,47.04601505]
[1644504675975,76.2827,108.22,108.07,1.56602542]
[1644504676175,76.2827,108.22,108.08,11.25]
[1644504676176,71.6577,108.22,108.08,11.25]
[1644504676375,37.87515484,108.21,108.09,22.72341002]
[1644504676576,13.8665,108.23,108.11,13.8675]
[1644504676875,13.8665,108.23,108.11,31.3675]
[1644504677076,24.5548,108.26,108.11,32.93352542]
[1644504677274,4.621,108.25,108.11,32.93352542]
[1644504677475,6.85222154,108.25,108.11,26.93352542]
[1644504677676,62.095125,108.24,108.12,36.77321095]
[1644504677880,47.34631593,108.22,108.12,37.02321095]
[1644504678276,47.59631593,108.22,108.12,37.02321095]
[1644504678475,47.59631593,108.22,108.11,11.25]
[1644504678680,2.23122154,108.21,108.08,40.1718]
[1644504678877,13.871,108.2,108.08,60.2923]
[1644504679076,13.871,108.2,108.08,60.0423]
[1644504679478,45.82941926,108.19,108.09,38.0649939]
[1644504679681,4.623,108.18,108.09,38.0649939]
[1644504679888,41.88115727,108.17,108.09,38.0649939]
[1644504680286,13.8732,108.18,108.09,38.0649939]
[1644504680490,46.2402,108.21,108.09,42.6879939]
[1644504680688,0.25,108.22,108.1,4.623]
[1644504681186,13.8681,108.22,108.1,4.873]
[1644504681390,13.8681,108.22,108.11,32.68162707]
[1644504681589,43.12936845,108.26,108.11,32.68162707]
[1644504681789,43.12936845,108.26,108.12,1.56071253]
[1644504681986,43.12936845,108.26,108.13,53.9359939]
[1644504681987,38.50736845,108.26,108.13,53.9359939]
[1644504682285,38.50736845,108.26,108.14,1.56071253]
[1644504682488,4.621,108.25,108.14,15.42381253]
[1644504682687,8.23122154,108.26,108.15,21.43162707]
[1644504682888,4.62,108.25,108.15,21.68162707]
[1644504683103,6.0,108.26,108.15,21.68162707]
[1644504683514,6.0,108.26,108.15,35.54342707]
[1644504683690,42.83644959,108.26,108.16,15.87]
[1644504683893,13.8618,108.27,108.17,38.0649939]
[1644504684094,4.62,108.31,108.18,4.62]
[1644504684292,4.62,108.31,108.18,22.12]
[1644504684492,4.619,108.34,108.18,22.12]
[1644504684692,4.619,108.34,108.19,1.55014466]
[1644504684899,36.22200805,108.33,108.2,21.43162707]
[1644504685098,39.39674697,108.31,108.2,21.43162707]
[1644504685303,4.618,108.3,108.2,0.25]
[1644504685501,13.8602,108.28,108.18,15.87]
[1644504685703,4.619,108.27,108.13,11.25]
[1644504685901,4.869,108.27,108.1,11.25]
[1644504686100,2.23122154,108.26,108.1,11.25]
[1644504686300,39.03021235,108.24,108.12,38.70865536]
[1644504686502,13.8687,108.23,108.12,43.32965536]
[1644504686701,43.53474238,108.22,108.13,4.622]
[1644504686901,43.53474238,108.22,108.12,55.95865536]
[1644504687310,43.53474238,108.22,108.14,20.78796561]
[1644504687507,57.40364238,108.22,108.14,20.78796561]
[1644504687908,59.63486392,108.22,108.14,20.78796561]
[1644504688108,43.53474238,108.22,108.14,21.03796561]
[1644504688312,43.53474238,108.22,108.14,20.78796561]
[1644504688509,104.8085,108.27,108.14,20.78796561]
[1644504688708,104.8085,108.27,108.14,26.78796561]
[1644504688909,79.7384,108.27,108.14,26.78796561]
[1644504689309,79.7384,108.27,108.14,20.78796561]
[1644504689511,43.65274882,108.26,108.14,20.78796561]
[1644504689710,18.4855,108.25,108.14,34.65056561]
[1644504689910,40.20177324,108.24,108.14,34.65056561]
[1644504690111,40.20177324,108.24,108.14,20.78796561]
[1644504690311,4.621,108.23,108.11,28.1678]
[1644504690511,6.85222154,108.23,108.11,28.1678]
[1644504690712,6.85222154,108.23,108.11,34.1678]
[1644504690713,0.03831909,108.22,108.11,34.1678]
[1644504690916,16.13794063,108.22,108.11,4.621]
[1644504691119,4.622,108.21,108.11,4.621]
[1644504691322,35.08510941,108.2,108.11,4.621]
[1644504691519,4.622,108.19,108.11,4.621]
[1644504691719,62.1236,108.19,108.04,11.25]
[1644504691921,13.91381909,108.18,108.01,34.0243]
[1644504692120,15.91331909,108.17,108.01,22.7743]
[1644504692319,0.03831909,108.16,107.97,4.625]
[1644504692523,15.876,108.15,107.99,42.65004087]
[1644504692719,45.04784586,108.14,107.99,42.65004087]
[1644504692920,29.79971909,108.13,107.99,42.65004087]
[1644504693119,36.81536481,108.12,107.99,42.65004087]
[1644504693320,0.03831909,108.11,107.99,42.65004087]
[1644504693721,0.03831909,108.11,107.99,48.90004087]
[1644504694124,0.03831909,108.11,107.99,42.90004087]
[1644504694323,0.03831909,108.11,107.99,48.90004087]
[1644504694723,13.92061909,108.11,107.99,62.78234087]
[1644504694924,48.82910977,108.1,107.99,62.78234087]
[1644504695125,0.03831909,108.09,107.99,62.53234087]
[1644504695924,0.03831909,108.09,107.99,56.53234087]
[1644504696526,0.03831909,108.09,108.01,16.8465801]
[1644504696730,49.07910977,108.1,108.01,16.8465801]
[1644504696928,49.07910977,108.1,108.01,17.0965801]
[1644504697128,54.82910977,108.1,108.01,17.0965801]
[1644504697436,48.82910977,108.1,108.01,17.0965801]
[1644504697627,54.82910977,108.1,108.01,17.0965801]
[1644504697826,68.31033131,108.1,107.96,4.627]
[1644504698026,4.66631909,108.09,107.96,10.627]
[1644504698228,13.92431909,108.08,107.96,6.0]
[1644504698426,0.03831909,108.08,107.97,128.72272787]
[1644504698629,0.03831909,108.09,107.98,11.25]
[1644504698833,0.03831909,108.12,108.0,13.8815]
[1644504699030,0.03831909,108.12,108.01,4.626]
[1644504699229,0.03831909,108.12,108.01,21.876]
[1644504699427,0.03831909,108.12,108.02,1.53596888]
[1644504699828,0.03831909,108.12,108.03,45.17830068]
[1644504700228,0.03831909,108.12,108.03,52.96426956]
[1644504700429,0.03831909,108.15,108.03,64.21426956]
[1644504701532,0.03831909,108.15,108.05,14.31832029]
[1644504701533,13.91531909,108.15,108.05,14.31832029]
[1644504701735,0.03831909,108.15,108.05,20.56832029]
[1644504701933,0.03831909,108.15,108.06,1.53596888]
[1644504702133,0.03831909,108.15,108.06,6.16096888]
[1644504702333,52.17239328,108.16,108.06,12.41096888]
[1644504702534,4.624,108.15,108.06,6.25]
[1644504702734,13.8775,108.14,108.06,0.25]
[1644504703233,44.77114982,108.13,108.04,40.309171]
[1644504703834,58.65024982,108.13,108.04,1.78596888]
[1644504704034,58.65024982,108.13,108.04,7.78596888]
[1644504704835,58.65024982,108.13,108.05,34.57212771]
[1644504705240,58.65024982,108.13,108.05,40.82212771]
[1644504705436,58.65024982,108.13,108.04,1.53596888]
[1644504705637,58.65024982,108.13,108.0,35.048]
[1644504705638,18.5061,108.12,108.0,35.048]
[1644504705839,18.54441909,108.12,108.0,23.798]
[1644504706037,0.03831909,108.11,108.0,23.798]
[1644504706239,4.627,108.1,108.0,23.798]
[1644504706437,36.43106686,108.09,108.0,46.97508738]
[1644504706636,47.62427171,108.07,108.0,46.97508738]
[1644504707240,4.628,108.11,108.0,46.97508738]
[1644504707537,0.03831909,108.12,108.0,48.51105626]
[1644504707737,4.627,108.11,108.0,46.97508738]
[1644504708137,39.42583242,108.1,108.0,46.97508738]
[1644504708743,4.627,108.09,108.0,47.22508738]
[1644504708940,43.38993769,108.08,108.0,0.25]
[1644504709440,43.38993769,108.08,107.98,29.80236888]
[1644504709848,43.38993769,108.08,108.01,50.34699445]
[1644504710041,43.38993769,108.08,108.01,48.81102557]
[1644504710842,57.27543769,108.08,108.01,49.06102557]
[1644504711441,57.27543769,108.08,108.01,48.81102557]
[1644504711641,57.27543769,108.08,107.98,23.6394]
[1644504712441,57.27543769,108.08,107.97,1.53596888]
[1644504712845,15.878,108.07,107.93,129.72716888]
[1644504713042,13.8937,108.03,107.88,4.628]
[1644504713243,13.8937,108.03,107.87,9.67999821]
[1644504713443,15.881,108.02,107.86,28.6842]
[1644504713643,58.7444985,108.01,107.87,48.66914813]
[1644504713846,65.60772004,108.01,107.87,48.66914813]
[1644504714044,13.8998,107.98,107.87,48.66914813]
[1644504714245,44.40521855,107.97,107.89,10.82747284]
[1644504715147,57.5825,107.99,107.89,10.82747284]
[1644504715348,46.3233,108.01,107.89,11.07747284]
[1644504715549,2.23122154,108.0,107.89,11.07747284]
[1644504715948,46.3233,108.01,107.89,11.07747284]
[1644504716148,40.46785529,108.0,107.89,11.07747284]
[1644504716349,35.83685529,108.0,107.89,0.25]
[1644504716549,16.12772154,107.99,107.89,0.25]
[1644504716748,38.00972154,107.99,107.87,14.1491]
[1644504717149,2.23122154,107.98,107.86,24.0542]
[1644504717375,36.27848417,107.97,107.86,67.96899813]
[1644504717779,35.20540743,107.94,107.86,81.87009813]
[1644504718377,15.883,107.98,107.86,81.87009813]
[1644504718578,11.25,107.98,107.87,4.633]
[1644504718781,11.25,107.98,107.87,4.883]
[1644504718981,11.25,107.98,107.87,18.7814]
[1644504719180,6.0,107.99,107.88,1.52840314]
[1644504719380,36.37663391,107.98,107.89,20.21382284]
[1644504719580,6.0,107.99,107.89,20.21382284]
[1644504719878,11.25,108.02,107.89,21.83182284]
[1644504720081,13.8899,108.05,107.9,20.05410314]
[1644504720279,13.8899,108.05,107.91,11.25]
[1644504720480,13.8899,108.05,107.92,4.63]
[1644504720780,41.55991417,108.04,107.93,39.1483406]
[1644504720981,41.55991417,108.04,107.93,40.67674374]
[1644504721279,41.55991417,108.04,107.93,45.3983406]
[1644504721483,41.55991417,108.04,107.95,20.34828037]
[1644504721683,47.55991417,108.04,107.95,20.34828037]
[1644504721881,41.55991417,108.04,107.95,40.48618037]
[1644504722079,47.55991417,108.04,107.95,40.48618037]
[1644504722279,41.80991417,108.04,107.95,40.48618037]
[1644504722882,61.70041417,108.04,107.95,40.23618037]
[1644504723280,61.70041417,108.04,107.95,40.48618037]
[1644504723480,61.45041417,108.04,107.95,40.48618037]
[1644504723782,4.628,108.06,107.95,42.01458351]
[1644504723984,53.1474,108.1,107.96,4.628]
[1644504724182,53.1474,108.1,107.97,13.8861]
[1644504724383,53.1474,108.1,107.97,14.1361]
[1644504724593,4.628,108.1,107.98,1.52840314]
[1644504724783,57.5353,108.11,107.98,46.92674374]
[1644504724984,4.627,108.13,107.99,93.74]
[1644504725184,46.2714,108.14,107.99,106.51840314]
[1644504725384,71.44941909,108.15,108.0,15.41100314]
[1644504725584,23.87281909,108.15,108.0,26.66100314]
[1644504725784,0.03831909,108.15,108.01,1.52840314]
[1644504725984,13.8779,108.14,108.02,50.8784]
[1644504726183,48.00652048,108.15,108.03,39.1483406]
[1644504726384,48.00652048,108.15,108.04,4.625]
[1644504726586,48.00652048,108.15,108.05,20.34828037]
[1644504726784,54.00652048,108.15,108.05,34.47408037]
[1644504726984,54.00652048,108.15,108.04,4.625]
[1644504727184,4.625,108.14,108.01,12.77840314]
[1644504727386,4.625,108.14,108.0,24.8676]
[1644504727684,65.50652048,108.15,108.01,4.626]
[1644504727885,4.626,108.14,108.01,19.8808]
[1644504728084,4.626,108.14,108.02,42.78376968]
[1644504728286,47.96820139,108.15,108.02,142.77376968]
[1644504728484,47.96820139,108.15,108.03,6.15340314]
[1644504728687,47.96820139,108.15,108.04,18.24125443]
[1644504728885,47.96820139,108.15,108.05,4.625]
[1644504729088,47.96820139,108.15,108.06,37.91382396]
[1644504729287,61.84500139,108.15,108.06,52.03842396]
[1644504729487,0.03831909,108.16,108.06,52.03842396]
[1644504729690,0.03831909,108.17,108.07,1.52840314]
[1644504729890,4.624,108.17,108.07,1.52840314]
[1644504730089,4.66231909,108.17,108.05,4.625]
[1644504730391,13.8815,108.13,108.05,4.625]
[1644504730589,4.625,108.12,108.05,4.625]
[1644504730792,2.625,108.12,108.05,4.625]
[1644504730990,34.35478011,108.12,108.06,43.03577428]
[1644504731191,34.35478011,108.12,108.02,21.8784]
[1644504731395,34.35478011,108.12,108.02,22.1284]
[1644504731694,13.8812,108.11,108.02,22.1284]
[1644504732294,40.35478011,108.12,108.03,46.77186579]
[1644504732492,40.35478011,108.12,108.03,60.65046579]
[1644504732691,34.35478011,108.12,108.03,66.90046579]
[1644504733293,34.35478011,108.12,108.03,68.42886893]
[1644504733494,13.8791,108.13,108.03,68.42886893]
[1644504733693,92.83231909,108.16,108.03,68.42886893]
[1644504733895,6.0,108.13,108.04,4.625]
[1644504734096,0.03831909,108.16,108.05,13.876]
[1644504734298,0.03831909,108.16,108.05,21.65440314]
[1644504734497,38.92635581,108.16,108.06,14.25315832]
[1644504734697,38.88803672,108.16,108.06,14.25315832]
[1644504734897,38.88803672,108.16,108.08,44.35695483]
[1644504735197,38.92635581,108.16,108.08,44.35695483]
[1644504735497,38.88803672,108.16,108.08,44.60695483]
[1644504736397,38.88803672,108.16,108.1,15.13966614]
[1644504736800,4.66231909,108.19,108.1,15.38966614]
[1644504737099,4.624,108.19,108.1,15.38966614]
[1644504737305,4.624,108.19,108.11,1.52840314]
[1644504737501,1.34152275,108.22,108.11,6.15140314]
[1644504737702,0.03831909,108.2,108.12,39.38640715]
[1644504737902,0.03831909,108.21,108.14,20.11021382]
[1644504738102,6.03831909,108.23,108.14,20.11021382]
[1644504738300,6.0,108.23,108.15,4.621]
[1644504738500,1.34152275,108.25,108.16,39.38640715]
[1644504738803,26.41600366,108.26,108.16,39.63640715]
[1644504739000,0.25,108.25,108.16,39.63640715]
[1644504739199,25.15111909,108.26,108.16,39.63640715]
[1644504739700,70.03774541,108.26,108.16,41.16481029]
[1644504739901,25.15111909,108.26,108.16,61.02601029]
[1644504740100,6.03831909,108.26,108.16,61.02601029]
[1644504740301,15.16350366,108.28,108.16,61.02601029]
[1644504740302,13.89861909,108.28,108.16,61.02601029]
[1644504740503,0.03831909,108.27,108.16,61.02601029]
[1644504740901,38.4273279,108.27,108.16,61.02601029]
[1644504741202,0.03831909,108.27,108.17,11.25]
[1644504741402,0.03831909,108.28,108.2,13.856]
[1644504741702,0.03831909,108.29,108.21,4.619]
[1644504741902,0.03831909,108.31,108.21,1.52840314]
[1644504742103,40.96774097,108.32,108.22,24.72721382]
[1644504742301,46.96774097,108.32,108.22,30.97721382]
[1644504742503,47.00606006,108.32,108.22,30.97721382]
[1644504742701,46.96774097,108.32,108.22,30.97721382]
[1644504742902,6.0,108.32,108.22,44.83071382]
[1644504743102,6.03831909,108.32,108.22,41.74211696]
[1644504743304,6.0,108.32,108.22,41.74211696]
[1644504743526,0.03831909,108.34,108.22,41.74211696]
[1644504743702,6.03831909,108.32,108.22,41.74211696]
[1644504743901,0.03831909,108.33,108.22,40.21371382]
[1644504744102,6.0,108.32,108.22,40.21371382]
[1644504744301,6.0,108.32,108.22,41.74211696]
[1644504744502,0.03831909,108.33,108.22,41.74211696]
[1644504744503,0.03831909,108.33,108.23,11.25]
[1644504744706,6.0,108.32,108.23,15.867]
[1644504744902,46.75187091,108.34,108.26,23.3830728]
[1644504745103,6.0,108.32,108.26,23.3830728]
[1644504745304,0.03831909,108.34,108.26,23.6330728]
[1644504745503,18.4684,108.35,108.26,23.6330728]
[1644504746106,13.88711909,108.37,108.26,39.00917594]
[1644504746305,13.88711909,108.37,108.26,45.00917594]
[1644504746703,0.03831909,108.39,108.26,45.00917594]
[1644504746905,0.03831909,108.39,108.27,11.25]
[1644504747103,13.88431909,108.39,108.27,15.865]
[1644504747307,0.03831909,108.38,108.28,1.52758111]
[1644504747604,13.846,108.39,108.28,62.73532928]
[1644504747605,0.03831909,108.39,108.28,62.73532928]
[1644504747805,0.03831909,108.38,108.28,68.98532928]
[1644504748005,0.03831909,108.39,108.29,4.615]
[1644504748205,47.67695858,108.4,108.3,23.3830728]
[1644504748407,35.50469303,108.37,108.3,23.3830728]
[1644504748606,0.03831909,108.4,108.3,23.3830728]
[1644504748806,0.03831909,108.4,108.3,23.6330728]
[1644504748807,0.03831909,108.39,108.3,23.6330728]
[1644504749013,0.03831909,108.4,108.3,23.6330728]
[1644504749508,43.97713579,108.4,108.3,23.6330728]
[1644504749708,44.22713579,108.4,108.3,25.16065391]
[1644504749911,58.07193579,108.4,108.3,25.16065391]
[1644504750111,44.22713579,108.4,108.3,23.6330728]
[1644504750308,44.22713579,108.4,108.3,25.16065391]
[1644504750510,44.22713579,108.4,108.3,23.6330728]
[1644504751230,48.84113579,108.4,108.3,23.6330728]
[1644504751432,4.90231909,108.4,108.3,23.6330728]
[1644504751632,4.65231909,108.4,108.3,39.00195391]
[1644504751832,0.03831909,108.4,108.3,56.25195391]
[1644504752233,0.03831909,108.4,108.3,50.25195391]
[1644504752433,0.03831909,108.4,108.3,56.25195391]
[1644504752632,0.03831909,108.4,108.3,50.25195391]
[1644504752835,0.03831909,108.4,108.3,56.25195391]
[1644504753435,0.00831909,108.4,108.3,56.25195391]
[1644504753634,4.614,108.45,108.3,56.25195391]
[1644504753834,70.54921295,108.46,108.31,4.613]
[1644504754035,0.46321295,108.46,108.35,13.835]
[1644504754235,0.46321295,108.46,108.35,20.085]
[1644504754434,0.46321295,108.46,108.36,36.11354817]
[1644504754837,0.46321295,108.46,108.36,37.89661487]
[1644504755038,0.46321295,108.46,108.36,51.73021487]
[1644504755240,0.46321295,108.46,108.37,11.25]
[1644504755640,0.46321295,108.46,108.38,1.5384136]
[1644504755937,0.46321295,108.46,108.38,1.7884136]
[1644504756136,0.46321295,108.46,108.38,6.25]
[1644504756335,0.46321295,108.46,108.38,14.0812]
[1644504756537,0.46321295,108.46,108.38,15.6196136]
[1644504756738,0.46321295,108.46,108.38,21.6196136]
[1644504757341,0.46321295,108.46,108.38,6.0]
[1644504757541,0.46321295,108.46,108.36,36.11354817]
[1644504757739,36.24696525,108.44,108.36,36.11354817]
[1644504758340,0.46321295,108.46,108.36,36.11354817]
[1644504759240,0.46321295,108.46,108.36,36.36354817]
[1644504759843,14.30051295,108.46,108.36,36.36354817]
[1644504760045,16.53173449,108.46,108.36,36.36354817]
[1644504760243,14.30051295,108.46,108.36,36.36354817]
[1644504760844,14.55051295,108.46,108.36,0.25]
[1644504761043,16.78173449,108.46,108.36,0.25]
[1644504761243,14.55051295,108.46,108.35,11.5]
[1644504761850,14.55051295,108.46,108.36,41.61073446]
[1644504762344,14.55051295,108.46,108.36,41.86073446]
[1644504762748,14.30051295,108.46,108.36,41.86073446]
[1644504763746,0.46321295,108.46,108.36,41.86073446]
[1644504763946,0.46321295,108.46,108.36,47.86073446]
[1644504764149,0.46321295,108.46,108.37,4.612]
[1644504764348,0.46321295,108.46,108.37,0.25]
[1644504765347,5.07421295,108.46,108.37,0.25]
[1644504765548,18.91101295,108.46,108.36,41.86073446]
[1644504765748,0.46321295,108.46,108.37,1.53636549]
[1644504766150,0.46321295,108.46,108.38,11.25]
[1644504766351,0.46321295,108.46,108.39,4.611]
[1644504766650,0.46321295,108.46,108.39,17.39736549]
[1644504766851,0.46321295,108.46,108.39,11.25]